fUSD/lending_fUSD_20240301
["ID","MTS","AMOUNT","RATE_DAILY","PERIOD"]
[316047200,1709336060502,-500.0,0.00022136,2]
[316047201,1709336060526,-500.0,0.00022136,2]
[316047202,1709336060548,-500.0,0.00022136,2]
[316047203,1709336060572,-500.0,0.00022136,2]
[316047204,1709336060599,-790.67,0.00022136,2]
[316047205,1709336060623,-500.0,0.00022136,2]
[316047206,1709336060647,-500.0,0.00022136,2]
[316047207,1709336060672,-664.78,0.00022136,2]
[316047208,1709336060696,-381.63694414,0.00022136,2]
[316047209,1709336060719,-500.0,0.00022136,2]
[316047210,1709336060741,-602.59,0.00022136,2]
[316047211,1709336060763,-500.0,0.00022136,2]
[316047212,1709336060785,-500.0,0.00022136,2]
[316047213,1709336060807,-500.0,0.00022136,2]
[316047214,1709336060828,-500.0,0.00022136,2]
[316047215,1709336060850,-200.0,0.00022136,2]
[316047216,1709336060871,-500.0,0.00022136,2]
[316047217,1709336060893,-500.0,0.00022136,2]
[316047218,1709336060915,-500.0,0.00022136,2]
[316047219,1709336060939,-500.0,0.00022136,2]
[316047220,1709336060961,-500.0,0.00022136,2]
[316047221,1709336060982,-500.0,0.00022136,2]
[316047222,1709336061004,-500.0,0.00022136,2]
[316047223,1709336061026,-500.0,0.00022136,2]
[316047224,1709336061048,-500.0,0.00022136,2]
[316047225,1709336061070,-500.0,0.00022136,2]
[316047226,1709336061092,-763.65,0.00022136,2]
[316047227,1709336061114,-500.0,0.00022136,2]
[316047228,1709336061135,-500.0,0.00022136,2]
[316047229,1709336061157,-500.0,0.00022136,2]
[316047230,1709336061179,-500.0,0.00022136,2]
[316047231,1709336061202,-500.0,0.00022136,2]
[316047232,1709336061225,-700.88,0.00022136,2]
[316047233,1709336061247,-655.56,0.00022136,2]
[316047234,1709336061270,-500.0,0.00022136,2]
[316047235,1709336061293,-1499.61,0.00022136,2]
[316047236,1709336061316,-500.0,0.00022136,2]
[316047237,1709336061339,-500.0,0.00022136,2]
[316047238,1709336061360,-500.0,0.00022136,2]
[316047239,1709336061383,-500.0,0.00022136,2]
[316047240,1709336061405,-500.0,0.00022136,2]
[316047241,1709336061428,-1301.42,0.00022136,2]
[316047242,1709336061452,-500.0,0.00022136,2]
[316047243,1709336061476,-808.45,0.00022136,2]
[316047244,1709336061506,-500.0,0.00022136,2]
[316047245,1709336061530,-500.0,0.00022136,2]
[316047246,1709336061556,-500.0,0.00022136,2]
[316047247,1709336061579,-525.37655287,0.00022136,2]
[316047248,1709336061603,-500.0,0.00022136,2]
[316047249,1709336061626,-500.0,0.00022136,2]
[316047250,1709336061648,-500.0,0.00022136,2]
[316047251,1709336061670,-500.0,0.00022136,2]
[316047252,1709336061692,-500.0,0.00022136,2]
[316047253,1709336061713,-500.0,0.00022136,2]
[316047254,1709336061735,-500.0,0.00022136,2]
[316047255,1709336061756,-500.0,0.00022136,2]
[316047256,1709336061777,-500.0,0.00022136,2]
[316047257,1709336061799,-500.0,0.00022136,2]
[316047258,1709336061820,-789.98,0.00022136,2]
[316047259,1709336061842,-500.0,0.00022136,2]
[316047260,1709336061863,-500.0,0.00022136,2]
[316047261,1709336061887,-531.98,0.00022136,2]
[316047262,1709336061910,-601.43,0.00022136,2]
[316047263,1709336061934,-500.0,0.00022136,2]
[316047264,1709336061956,-500.0,0.00022136,2]
[316047265,1709336061978,-500.0,0.00022136,2]
[316047266,1709336062003,-500.0,0.00022136,2]
[316047267,1709336062024,-500.0,0.00022136,2]
[316047268,1709336062046,-209.94,0.00022136,2]
[316047269,1709336062067,-500.0,0.00022136,2]
[316047270,1709336062089,-500.0,0.00022136,2]
[316047271,1709336062111,-500.0,0.00022136,2]
[316047272,1709336062132,-500.0,0.00022136,2]
[316047273,1709336062154,-500.0,0.00022136,2]
[316047274,1709336062176,-780.31,0.00022136,2]
[316047275,1709336062199,-626.42,0.00022136,2]
[316047276,1709336062221,-500.0,0.00022136,2]
[316047277,1709336062244,-500.0,0.00022136,2]
[316047278,1709336062266,-500.0,0.00022136,2]
[316047279,1709336062291,-150.0,0.00022136,2]
[316047280,1709336062315,-500.0,0.00022136,2]
[316047281,1709336062337,-961.08,0.00022136,2]
[316047282,1709336062362,-766.78,0.00022136,2]
[316047283,1709336062386,-500.0,0.00022136,2]
[316047284,1709336062408,-500.0,0.00022136,2]
[316047285,1709336062431,-500.0,0.00022136,2]
[316047286,1709336062456,-500.0,0.00022136,2]
[316047287,1709336062479,-500.0,0.00022136,2]
[316047288,1709336062501,-500.0,0.00022136,2]
[316047289,1709336062523,-1329.35,0.00022136,2]
[316047290,1709336062545,-499.07549382,0.00022136,2]
[316047291,1709336062567,-500.0,0.00022136,2]
[316047292,1709336062588,-500.0,0.00022136,2]
[316047293,1709336062615,-1047.57,0.00022136,2]
[316047294,1709336062638,-500.0,0.00022136,2]
[316047295,1709336062660,-1069.0,0.00022136,2]
[316047296,1709336062683,-302.5,0.00022136,2]
[316047297,1709336062707,-500.0,0.00022136,2]
[316047298,1709336062729,-672.59,0.00022136,2]
[316047299,1709336062752,-500.0,0.00022136,2]
[316047300,1709336063085,-218.11,0.00022136,2]
[316047301,1709336063109,-500.0,0.00022136,2]
[316047302,1709336063132,-500.0,0.00022136,2]
[316047303,1709336063155,-500.0,0.00022136,2]
[316047304,1709336063179,-500.0,0.00022136,2]
[316047305,1709336063204,-371.31435053,0.00022136,2]
[316047306,1709336063226,-171.06845264,0.00022136,2]
[316047307,1709336063252,-500.0,0.00022136,2]
[316047308,1709336063276,-775.73,0.00022136,2]
[316047309,1709336063303,-1005.83,0.00022136,2]
[316047310,1709336063328,-682.7,0.00022136,2]
[316047311,1709336063352,-500.0,0.00022136,2]
[316047312,1709336063380,-500.0,0.00022136,2]
[316047313,1709336063403,-519.41,0.00022136,2]
[316047314,1709336063428,-500.0,0.00022136,2]
[316047315,1709336063452,-500.0,0.00022136,2]
[316047316,1709336063477,-874.06,0.00022136,2]
[316047317,1709336063501,-500.0,0.00022136,2]
[316047318,1709336063523,-500.0,0.00022136,2]
[316047319,1709336063546,-500.0,0.00022136,2]
[316047320,1709336063569,-500.0,0.00022136,2]
[316047321,1709336063596,-776.83,0.00022136,2]
[316047322,1709336063618,-500.0,0.00022136,2]
[316047323,1709336063642,-514.21,0.00022136,2]
[316047324,1709336063664,-500.0,0.00022136,2]
[316047325,1709336063686,-500.0,0.00022136,2]
[316047326,1709336063709,-500.0,0.00022136,2]
[316047327,1709336063735,-569.21,0.00022136,2]
[316047328,1709336063758,-500.0,0.00022136,2]
[316047329,1709336063781,-500.0,0.00022136,2]
[316047330,1709336063803,-705.32,0.00022136,2]
[316047331,1709336063825,-500.0,0.00022136,2]
[316047332,1709336063850,-500.0,0.00022136,2]
[316047333,1709336063873,-500.0,0.00022136,2]
[316047334,1709336063898,-924.05,0.00022136,2]
[316047335,1709336063930,-606.65,0.00022136,2]
[316047336,1709336063956,-500.0,0.00022136,2]
[316047337,1709336063981,-500.0,0.00022136,2]
[316047338,1709336064006,-631.7,0.00022136,2]
[316047339,1709336064028,-500.0,0.00022136,2]
[316047340,1709336064055,-500.0,0.00022136,2]
[316047341,1709336064080,-2298.04,0.00022136,2]
[316047342,1709336064102,-500.0,0.00022136,2]
[316047343,1709336064125,-625.0,0.00022136,2]
[316047344,1709336064149,-500.0,0.00022136,2]
[316047345,1709336064173,-500.0,0.00022136,2]
[316047346,1709336064196,-500.0,0.00022136,2]
[316047347,1709336064220,-500.0,0.00022136,2]
[316047348,1709336064243,-5207.94,0.00022136,2]
[316047349,1709336064267,-500.0,0.00022136,2]
[316047350,1709336064294,-500.0,0.00022136,2]
[316047351,1709336064317,-810.99,0.00022136,2]
[316047352,1709336064339,-500.0,0.00022136,2]
[316047353,1709336064361,-500.0,0.00022136,2]
[316047354,1709336064384,-500.0,0.00022136,2]
[316047355,1709336064407,-3024.8,0.00022136,2]
[316047356,1709336064430,-1126.35,0.00022136,2]
[316047357,1709336064457,-7900.35,0.00022136,2]
[316047358,1709336064480,-500.0,0.00022136,2]
[316047359,1709336064504,-672.04,0.00022136,2]
[316047360,1709336064527,-1169.83,0.00022136,2]
[316047361,1709336064556,-7532.36,0.00022136,2]
[316047362,1709336064579,-964.53,0.00022136,2]
[316047363,1709336064604,-500.0,0.00022136,2]
[316047364,1709336064628,-500.0,0.00022136,2]
[316047365,1709336064654,-2424.23,0.00022136,2]
[316047366,1709336064676,-500.0,0.00022136,2]
[316047367,1709336064702,-3015.43,0.00022136,2]
[316047368,1709336064726,-1371.54,0.00022136,2]
[316047369,1709336064750,-500.0,0.00022136,2]
[316047370,1709336064773,-500.0,0.00022136,2]
[316047371,1709336064795,-1303.05,0.00022136,2]
[316047372,1709336064822,-4458.95,0.00022136,2]
[316047373,1709336064844,-791.47,0.00022136,2]
[316047374,1709336064865,-500.0,0.00022136,2]
[316047375,1709336064887,-1427.89,0.00022136,2]
[316047376,1709336064909,-500.0,0.00022136,2]
[316047377,1709336064931,-500.0,0.00022136,2]
[316047378,1709336064954,-500.0,0.00022136,2]
[316047379,1709336064976,-898.93,0.00022136,2]
[316047380,1709336064997,-1648.89,0.00022136,2]
[316047381,1709336065020,-907.94,0.00022136,2]
[316047382,1709336065042,-500.0,0.00022136,2]
[316047383,1709336065064,-819.19,0.00022136,2]
[316047384,1709336065086,-500.0,0.00022136,2]
[316047385,1709336065108,-2026.54,0.00022136,2]
[316047386,1709336065131,-500.0,0.00022136,2]
[316047387,1709336065156,-500.0,0.00022136,2]
[316047388,1709336065178,-443.72,0.00022136,2]
[316047389,1709336065202,-500.0,0.00022136,2]
[316047390,1709336065225,-500.0,0.00022136,2]
[316047391,1709336065247,-801.81,0.00022136,2]
[316047392,1709336065275,-500.0,0.00022136,2]
[316047393,1709336065305,-500.0,0.00022136,2]
[316047394,1709336065329,-500.0,0.00022136,2]
[316047395,1709336065353,-2884.03,0.00022136,2]
[316047396,1709336065381,-8965.62,0.00022136,2]
[316047397,1709336065481,-500.0,0.00022136,2]
[316047398,1709336065505,-505.78,0.00022136,2]
[316047399,1709336065528,-777.57,0.00022136,2]
[316047400,1709336065551,-940.54,0.00022136,2]
[316047401,1709336065573,-500.0,0.00022136,2]
[316047402,1709336065594,-500.0,0.00022136,2]
[316047403,1709336065617,-1906.19,0.00022136,2]
[316047404,1709336065639,-511.86,0.00022136,2]
[316047405,1709336065661,-500.0,0.00022136,2]
[316047406,1709336065685,-627.61,0.00022136,2]
[316047407,1709336065709,-1713.97,0.00022136,2]
[316047408,1709336065737,-500.0,0.00022136,2]
[316047409,1709336065761,-500.0,0.00022136,2]
[316047410,1709336065785,-1496.5,0.00022136,2]
[316047411,1709336065811,-15578.52,0.00022136,2]
[316047412,1709336065837,-932.99,0.00022136,2]
[316047413,1709336065862,-500.0,0.00022136,2]
[316047414,1709336065888,-3986.75,0.00022136,2]
[316047415,1709336065912,-818.08,0.00022136,2]
[316047416,1709336065938,-571.01,0.00022136,2]
[316047417,1709336065961,-571.24110623,0.00022136,2]
[316047418,1709336065986,-500.0,0.00022136,2]
[316047419,1709336066012,-11280.04,0.00022136,2]
[316047420,1709336066034,-500.0,0.00022136,2]
[316047421,1709336066058,-500.0,0.00022136,2]
[316047422,1709336066081,-500.0,0.00022136,2]
[316047423,1709336066105,-500.0,0.00022136,2]
[316047424,1709336066130,-960.58,0.00022136,2]
[316047425,1709336066153,-500.0,0.00022136,2]
[316047426,1709336066177,-500.0,0.00022136,2]
[316047427,1709336066202,-645.24,0.00022136,2]
[316047428,1709336066226,-500.0,0.00022136,2]
[316047429,1709336066249,-500.0,0.00022136,2]
[316047430,1709336066275,-523.5,0.00022136,2]
[316047431,1709336066298,-599.65,0.00022136,2]
[316047432,1709336066323,-500.0,0.00022136,2]
[316047433,1709336066348,-500.0,0.00022136,2]
[316047434,1709336066373,-500.0,0.00022136,2]
[316047435,1709336066397,-2941.98,0.00022136,2]
[316047436,1709336066421,-500.0,0.00022136,2]
[316047437,1709336066448,-500.0,0.00022136,2]
[316047438,1709336066473,-1255.39,0.00022136,2]
[316047439,1709336066497,-3267.39,0.00022136,2]
[316047440,1709336066520,-500.0,0.00022136,2]
[316047441,1709336066544,-500.0,0.00022136,2]
[316047442,1709336066567,-500.0,0.00022136,2]
[316047443,1709336066591,-682.61,0.00022136,2]
[316047444,1709336066615,-1993.8,0.00022136,2]
[316047445,1709336066638,-500.0,0.00022136,2]
[316047446,1709336066661,-539.56,0.00022136,2]
[316047447,1709336066684,-500.0,0.00022136,2]
[316047448,1709336066709,-500.0,0.00022136,2]
[316047449,1709336066731,-2953.96,0.00022136,2]
[316047450,1709336066753,-500.0,0.00022136,2]
[316047451,1709336066778,-500.0,0.00022136,2]
[316047452,1709336066800,-1705.43,0.00022136,2]
[316047453,1709336066825,-500.0,0.00022136,2]
[316047454,1709336066849,-500.0,0.00022136,2]
[316047455,1709336066873,-500.0,0.00022136,2]
[316047456,1709336066895,-506.64673091,0.00022136,2]
[316047457,1709336066918,-180.75388934,0.00022136,2]
[316047458,1709336066945,-500.0,0.00022136,2]
[316047459,1709336066969,-664.88,0.00022136,2]
[316047460,1709336066992,-500.0,0.00022136,2]
[316047461,1709336067015,-940.32,0.00022136,2]
[316047462,1709336067037,-651.33,0.00022136,2]
[316047463,1709336067062,-4272.54,0.00022136,2]
[316047464,1709336067086,-656.86,0.00022136,2]
[316047465,1709336067110,-500.0,0.00022136,2]
[316047466,1709336067135,-667.21,0.00022136,2]
[316047467,1709336067157,-1076.12,0.00022136,2]
[316047468,1709336067184,-1251.4,0.00022136,2]
[316047469,1709336067209,-500.0,0.00022136,2]
[316047470,1709336067234,-2112.85,0.00022136,2]
[316047471,1709336067259,-500.0,0.00022136,2]
[316047472,1709336067284,-864.5,0.00022136,2]
[316047473,1709336067307,-500.0,0.00022136,2]
[316047474,1709336067330,-500.0,0.00022136,2]
[316047475,1709336067353,-500.0,0.00022136,2]
[316047476,1709336067378,-500.0,0.00022136,2]
[316047477,1709336067401,-500.0,0.00022136,2]
[316047478,1709336067424,-500.0,0.00022136,2]
[316047479,1709336067447,-766.25,0.00022136,2]
[316047480,1709336067470,-3742.1,0.00022136,2]
[316047481,1709336067493,-767.14,0.00022136,2]
[316047482,1709336067518,-1470.24,0.00022136,2]
[316047483,1709336067541,-500.0,0.00022136,2]
[316047484,1709336067564,-840.22,0.00022136,2]
[316047485,1709336067586,-1779.68,0.00022136,2]
[316047486,1709336067608,-500.0,0.00022136,2]
[316047487,1709336067630,-500.0,0.00022136,2]
[316047488,1709336067651,-500.0,0.00022136,2]
[316047489,1709336067674,-1335.6,0.00022136,2]
[316047490,1709336067696,-500.0,0.00022136,2]
[316047491,1709336067718,-541.8,0.00022136,2]
[316047492,1709336067739,-500.0,0.00022136,2]
[316047493,1709336067761,-209.68396833,0.00022136,2]
[316047494,1709336067784,-500.0,0.00022136,2]
[316047495,1709336067809,-2207.67,0.00022136,2]
[316047496,1709336067833,-500.0,0.00022136,2]
[316047497,1709336067858,-1065.37,0.00022136,2]
[316047498,1709336067881,-502.96,0.00022136,2]
[316047499,1709336067908,-585.68,0.00022136,2]
[316047500,1709336067932,-1008.36,0.00022136,2]
[316047501,1709336067957,-500.0,0.00022136,2]
[316047502,1709336067981,-1000.47,0.00022136,2]
[316047503,1709336068003,-500.0,0.00022136,2]
[316047504,1709336068024,-500.0,0.00022136,2]
[316047505,1709336068047,-568.79,0.00022136,2]
[316047506,1709336068071,-500.0,0.00022136,2]
[316047507,1709336068098,-500.0,0.00022136,2]
[316047508,1709336068122,-801.1,0.00022136,2]
[316047509,1709336068146,-558.86,0.00022136,2]
[316047510,1709336068170,-500.0,0.00022136,2]
[316047511,1709336068195,-537.68,0.00022136,2]
[316047512,1709336068219,-850.48,0.00022136,2]
[316047513,1709336068242,-651.01,0.00022136,2]
[316047514,1709336068264,-1113.66,0.00022136,2]
[316047515,1709336068291,-7192.53,0.00022136,2]
[316047516,1709336068314,-683.59,0.00022136,2]
[316047517,1709336068337,-500.0,0.00022136,2]
[316047518,1709336068360,-500.0,0.00022136,2]
[316047519,1709336068384,-500.0,0.00022136,2]
[316047520,1709336068408,-911.31,0.00022136,2]
[316047521,1709336068431,-1887.51,0.00022136,2]
[316047522,1709336068455,-549.98,0.00022136,2]
[316047523,1709336068479,-500.0,0.00022136,2]
[316047524,1709336068502,-1084.23,0.00022136,2]
[316047525,1709336068525,-500.0,0.00022136,2]
[316047526,1709336068546,-1374.07,0.00022136,2]
[316047527,1709336068568,-546.58,0.00022136,2]
[316047528,1709336068591,-500.0,0.00022136,2]
[316047529,1709336068614,-1006.12,0.00022136,2]
[316047530,1709336068637,-737.36,0.00022136,2]
[316047531,1709336068659,-809.31,0.00022136,2]
[316047532,1709336068681,-500.0,0.00022136,2]
[316047533,1709336068703,-500.0,0.00022136,2]
[316047534,1709336068726,-2010.26,0.00022136,2]
[316047535,1709336068747,-500.0,0.00022136,2]
[316047536,1709336068768,-229.90326087,0.00022136,2]
[316047537,1709336068791,-500.0,0.00022136,2]
[316047538,1709336068812,-500.0,0.00022136,2]
[316047539,1709336068834,-500.0,0.00022136,2]
[316047540,1709336068857,-1793.66,0.00022136,2]
[316047541,1709336068879,-576.93,0.00022136,2]
[316047542,1709336068903,-7307.2,0.00022136,2]
[316047543,1709336068925,-500.0,0.00022136,2]
[316047544,1709336068948,-965.81,0.00022136,2]
[316047545,1709336068975,-500.0,0.00022136,2]
[316047546,1709336069003,-500.0,0.00022136,2]
[316047547,1709336069027,-779.96,0.00022136,2]
[316047548,1709336069049,-500.0,0.00022136,2]
[316047549,1709336069072,-657.64,0.00022136,2]
[316047550,1709336069096,-500.0,0.00022136,2]
[316047551,1709336069244,-500.0,0.00022136,2]
[316047552,1709336069269,-500.0,0.00022136,2]
[316047553,1709336069296,-500.0,0.00022136,2]
[316047554,1709336069317,-563.88,0.00022136,2]
[316047555,1709336069344,-500.0,0.00022136,2]
[316047556,1709336069367,-1089.3,0.00022136,2]
[316047557,1709336069392,-2515.97,0.00022136,2]
[316047558,1709336069414,-500.0,0.00022136,2]
[316047559,1709336069437,-18342.8,0.00022136,2]
[316047560,1709336069462,-500.0,0.00022136,2]
[316047561,1709336069484,-500.0,0.00022136,2]
[316047562,1709336069507,-3000.0,0.0002214,2]
[316047563,1709336069529,-175.83026954,0.00022145,2]
[316047564,1709336069555,-3000.0,0.0002215,2]
[316047565,1709336069580,-50000.0,0.00022152,2]
[316047566,1709336069605,-19999.52189402,0.00022153,2]
[316047567,1709336069629,-200000.0,0.00022153,2]
[316047568,1709336069654,-156344.32031747,0.00022154,4]
[316047569,1709336069678,-13737.28555465,0.00022154,2]
[316047570,1709336069704,-50000.0,0.00022154,2]
[316047571,1709336069728,-11579.69594196,0.00022154,2]
[316047572,1709336069751,-9786.11868911,0.00022154,2]
[316047573,1709336069776,-9433.15196782,0.00022154,2]
[316047574,1709336069800,-3000.0,0.0002216,2]
[316047575,1709336069823,-3000.0,0.0002217,2]
[316047576,1709336069846,-3000.0,0.0002218,2]
[316047577,1709336069868,-200.0,0.00022187,2]
[316047578,1709336069891,-3000.0,0.0002219,2]
[316047579,1709336069913,-200.0,0.00022197,3]
[316047580,1709336069936,-3000.0,0.000222,2]
[316047581,1709336069960,-1000.0,0.000222,2]
[316047582,1709336069983,-4035.86101212,0.00022209,2]
[316047583,1709336070006,-3060.302123,0.0002221,2]
[316047584,1709336070029,-672.91,0.00022234,2]
[316047585,1709336070053,-12878.0,0.00022234,2]
[316047586,1709336070077,-999.27,0.00022234,2]
[316047587,1709336070100,-1007.75,0.00022234,2]
[316047588,1709336070124,-599.0,0.00022234,2]
[316047589,1709336070148,-665.4,0.00022234,2]
[316047590,1709336070170,-601.95,0.00022234,2]
[316047591,1709336070194,-631.9,0.00022234,2]
[316047592,1709336070216,-1222.9,0.00022234,2]
[316047593,1709336070239,-500.0,0.00022234,2]
[316047594,1709336070261,-1190.84041946,0.00022244,2]
[316047595,1709336070288,-612.36980932,0.00022244,2]
[316047596,1709336070310,-565.69661766,0.00022244,2]
[316047597,1709336070332,-337.06761057,0.00022244,2]
[316047598,1709336070356,-500.0,0.00022244,2]
[316047599,1709336070383,-500.0,0.00022244,2]
[316047600,1709336070406,-500.0,0.00022244,2]
[316047601,1709336070429,-500.0,0.00022244,2]
[316047602,1709336070455,-712.46,0.00022244,2]
[316047603,1709336070478,-500.0,0.00022244,2]
[316047604,1709336070504,-13527.14,0.00022244,2]
[316047605,1709336070530,-580.70359112,0.00022244,2]
[316047606,1709336070554,-500.0,0.00022244,2]
[316047607,1709336070576,-500.0,0.00022244,2]
[316047608,1709336070598,-500.0,0.00022244,2]
[316047609,1709336070621,-21381.4,0.00022244,2]
[316047610,1709336070644,-1001.67,0.00022244,2]
[316047611,1709336070666,-1132.54,0.00022244,2]
[316047612,1709336070688,-447.83,0.00022244,2]
[316047613,1709336070713,-500.0,0.00022244,2]
[316047614,1709336070736,-500.0,0.00022244,2]
[316047615,1709336070760,-1035.98,0.00022244,2]
[316047616,1709336070783,-500.0,0.00022244,2]
[316047617,1709336070806,-500.0,0.00022244,2]
[316047618,1709336070829,-500.0,0.00022244,2]
[316047619,1709336070854,-500.0,0.00022244,2]
[316047620,1709336070876,-500.0,0.00022244,2]
[316047621,1709336070898,-2776.31,0.00022244,2]
[316047622,1709336070920,-500.0,0.00022244,2]
[316047623,1709336070942,-500.0,0.00022244,2]
[316047624,1709336070966,-500.0,0.00022244,2]
[316047625,1709336070988,-500.0,0.00022244,2]
[316047626,1709336071010,-582.13,0.00022244,2]
[316047627,1709336071032,-1153.56,0.00022244,2]
[316047628,1709336071055,-855.37,0.00022244,2]
[316047629,1709336071078,-890.74,0.00022244,2]
[316047630,1709336071100,-500.0,0.00022244,2]
[316047631,1709336071122,-500.0,0.00022244,2]
[316047632,1709336071145,-500.0,0.00022244,2]
[316047633,1709336071166,-500.0,0.00022244,2]
[316047634,1709336071189,-1113.77,0.00022244,2]
[316047635,1709336071214,-965.99,0.00022244,2]
[316047636,1709336071237,-4160.05,0.00022244,2]
[316047637,1709336071260,-579.17,0.00022244,2]
[316047638,1709336071283,-500.0,0.00022244,2]
[316047639,1709336071310,-4608.17,0.00022244,2]
[316047640,1709336071333,-500.0,0.00022244,2]
[316047641,1709336071355,-500.0,0.00022244,2]
[316047642,1709336071388,-25351.59,0.00022244,2]
[316047643,1709336071410,-500.0,0.00022244,2]
[316047644,1709336071433,-757.27,0.00022244,2]
[316047645,1709336071459,-500.0,0.00022244,2]
[316047646,1709336071482,-500.0,0.00022244,2]
[316047647,1709336071506,-1190.16,0.00022244,2]
[316047648,1709336071530,-500.0,0.00022244,2]
[316047649,1709336071552,-500.0,0.00022244,2]
[316047650,1709336071576,-500.0,0.00022244,2]
[316047651,1709336071599,-500.0,0.00022244,2]
[316047652,1709336071622,-500.0,0.00022244,2]
[316047653,1709336071644,-500.0,0.00022244,2]
[316047654,1709336071667,-793.33,0.00022244,2]
[316047655,1709336071689,-500.0,0.00022244,2]
[316047656,1709336071983,-840.78,0.00022244,2]
[316047657,1709336072007,-500.0,0.00022244,2]
[316047658,1709336072030,-500.0,0.00022244,2]
[316047659,1709336072053,-500.0,0.00022244,2]
[316047660,1709336072078,-500.0,0.00022244,2]
[316047661,1709336072102,-1147.57,0.00022244,2]
[316047662,1709336072126,-1815.66,0.00022244,2]
[316047663,1709336072151,-500.0,0.00022244,2]
[316047664,1709336072174,-500.0,0.00022244,2]
[316047665,1709336072199,-586.03,0.00022244,2]
[316047666,1709336072223,-541.12,0.00022244,2]
[316047667,1709336072246,-844.64,0.00022244,2]
[316047668,1709336072270,-150.4278112,0.00022244,2]
[316047669,1709336072293,-502.74,0.00022244,2]
[316047670,1709336072316,-237.29918514,0.00022244,2]
[316047671,1709336072340,-581.18,0.00022244,2]
[316047672,1709336072363,-510.89,0.00022244,2]
[316047673,1709336072387,-500.0,0.00022244,2]
[316047674,1709336072410,-500.0,0.00022244,2]
[316047675,1709336072433,-500.0,0.00022244,2]
[316047676,1709336072458,-500.0,0.00022244,2]
[316047677,1709336072482,-1584.36,0.00022244,2]
[316047678,1709336072506,-500.0,0.00022244,2]
[316047679,1709336072529,-602.18,0.00022244,2]
[316047680,1709336072552,-500.0,0.00022244,2]
[316047681,1709336072577,-500.0,0.00022244,2]
[316047682,1709336072600,-500.0,0.00022244,2]
[316047683,1709336072623,-500.0,0.00022244,2]
[316047684,1709336072646,-500.0,0.00022244,2]
[316047685,1709336072671,-500.0,0.00022244,2]
[316047686,1709336072694,-500.0,0.00022244,2]
[316047687,1709336072719,-656.39,0.00022244,2]
[316047688,1709336072742,-254.25,0.00022244,2]
[316047689,1709336072765,-859.52,0.00022244,2]
[316047690,1709336072788,-789.21,0.00022244,2]
[316047691,1709336072810,-500.0,0.00022244,2]
[316047692,1709336072833,-3264.74,0.00022244,2]
[316047693,1709336072856,-601.05,0.00022244,2]
[316047694,1709336072880,-1440.75,0.00022244,2]
[316047695,1709336072902,-500.0,0.00022244,2]
[316047696,1709336072924,-2748.89,0.00022244,2]
[316047697,1709336072946,-500.0,0.00022244,2]
[316047698,1709336072970,-902.55,0.00022244,2]
[316047699,1709336072993,-500.0,0.00022244,2]